[Event "*** Titled Tuesday Blitz"]
[Site "Chess.com"]
[Date "2020.04.14"]
[Round "9"]
[White "Zurability"]
[Black "Zq1"]
[Result "1-0"]
[WhiteElo "2729"]
[BlackElo "2587"]
[TimeControl "180+1"]
[EndTime "11:43:56 PDT"]
[Termination "Zurability won on time"]

1. Nf3 {[%clk 0:03:00.3]} 1... Nf6 {[%clk 0:02:59.3]} 2. c4 {[%clk 0:03:00]}
2... e6 {[%clk 0:02:58.7]} 3. d4 {[%clk 0:03:00.5]} 3... d5 {[%clk 0:02:58.4]}
4. Qc2 {[%clk 0:02:59.5]} 4... Be7 {[%clk 0:02:54.9]} 5. Bg5 {[%clk 0:02:59.6]}
5... O-O {[%clk 0:02:53.3]} 6. e3 {[%clk 0:03:00]} 6... b6 {[%clk 0:02:46.9]} 7.
Nc3 {[%clk 0:02:59.9]} 7... Bb7 {[%clk 0:02:46.1]} 8. cxd5 {[%clk 0:02:53.8]}
8... Nxd5 {[%clk 0:02:44.7]} 9. Nxd5 {[%clk 0:02:47.8]} 9... Bxd5 {[%clk
0:02:36.6]} 10. Bxe7 {[%clk 0:02:44.6]} 10... Qxe7 {[%clk 0:02:36.1]} 11. Bd3
{[%clk 0:02:45]} 11... h6 {[%clk 0:02:32.8]} 12. e4 {[%clk 0:02:43.3]} 12... Bb7
{[%clk 0:02:28.3]} 13. O-O {[%clk 0:02:42.8]} 13... Rc8 {[%clk 0:02:26.4]} 14.
Rfe1 {[%clk 0:02:23.5]} 14... Nd7 {[%clk 0:02:15.8]} 15. Rad1 {[%clk 0:02:18.9]}
15... c5 {[%clk 0:02:13.3]} 16. d5 {[%clk 0:02:18.9]} 16... exd5 {[%clk
0:02:12.6]} 17. exd5 {[%clk 0:02:19]} 17... Qd6 {[%clk 0:02:10.4]} 18. Bc4
{[%clk 0:01:57.1]} 18... Re8 {[%clk 0:01:58.1]} 19. Qf5 {[%clk 0:01:54.1]} 19...
Nf6 {[%clk 0:01:53.7]} 20. h3 {[%clk 0:01:39.1]} 20... a6 {[%clk 0:01:52]} 21.
a4 {[%clk 0:01:38.5]} 21... Rxe1+ {[%clk 0:01:47.1]} 22. Rxe1 {[%clk 0:01:37.8]}
22... Bxd5 {[%clk 0:01:29.3]} 23. Rd1 {[%clk 0:01:36.8]} 23... Rd8 {[%clk
0:01:11.7]} 24. Bxa6 {[%clk 0:01:35.6]} 24... Qe6 {[%clk 0:01:06.1]} 25. Qxe6
{[%clk 0:01:33.1]} 25... fxe6 {[%clk 0:01:05.4]} 26. Ne5 {[%clk 0:01:33.2]}
26... Kf8 {[%clk 0:00:57.5]} 27. Bb5 {[%clk 0:01:29.9]} 27... Ke7 {[%clk
0:00:54.1]} 28. f3 {[%clk 0:01:30.1]} 28... Rc8 {[%clk 0:00:50.2]} 29. Kf2
{[%clk 0:01:26]} 29... g5 {[%clk 0:00:43.5]} 30. h4 {[%clk 0:01:20.9]} 30...
gxh4 {[%clk 0:00:37.6]} 31. Rh1 {[%clk 0:01:20.4]} 31... h5 {[%clk 0:00:32.1]}
32. Rxh4 {[%clk 0:01:19.8]} 32... Kd6 {[%clk 0:00:32.3]} 33. Nf7+ {[%clk
0:01:10.2]} 33... Ke7 {[%clk 0:00:32.3]} 34. Ne5 {[%clk 0:01:10.8]} 34... Kd6
{[%clk 0:00:32.4]} 35. Nc4+ {[%clk 0:01:10]} 35... Kc7 {[%clk 0:00:27.4]} 36.
Ne3 {[%clk 0:01:08.4]} 36... Bc6 {[%clk 0:00:21.2]} 37. Rf4 {[%clk 0:01:06.5]}
37... Nd5 {[%clk 0:00:18.9]} 38. Rf7+ {[%clk 0:01:06]} 38... Kb8 {[%clk
0:00:17.5]} 39. Nc4 {[%clk 0:01:04.3]} 39... Bxb5 {[%clk 0:00:14.8]} 40. axb5
{[%clk 0:01:04.9]} 40... Rh8 {[%clk 0:00:14.1]} 41. Nd6 {[%clk 0:01:02.9]} 41...
Nc7 {[%clk 0:00:13]} 42. Re7 {[%clk 0:00:54.4]} 42... Rd8 {[%clk 0:00:12.5]} 43.
Nc4 {[%clk 0:00:53]} 43... Nxb5 {[%clk 0:00:11.6]} 44. Nxb6 {[%clk 0:00:53]}
44... Nc7 {[%clk 0:00:11.7]} 45. Nc4 {[%clk 0:00:52.6]} 45... Rd4 {[%clk
0:00:11.3]} 46. b3 {[%clk 0:00:52.4]} 46... Rd3 {[%clk 0:00:11.4]} 47. Na5
{[%clk 0:00:52.5]} 47... Rd2+ {[%clk 0:00:11.2]} 48. Kg3 {[%clk 0:00:52.5]}
48... Ra2 {[%clk 0:00:11.2]} 49. Nc6+ {[%clk 0:00:51.5]} 49... Kb7 {[%clk
0:00:10.9]} 50. Nd8+ {[%clk 0:00:41.6]} 50... Kb6 {[%clk 0:00:10]} 51. Nxe6
{[%clk 0:00:41.9]} 51... Nd5 {[%clk 0:00:08.6]} 52. Rh7 {[%clk 0:00:40.3]} 52...
Ne3 {[%clk 0:00:08.2]} 53. Nf4 {[%clk 0:00:40.5]} 53... Nf5+ {[%clk 0:00:06.2]}
54. Kh3 {[%clk 0:00:39]} 54... Nd4 {[%clk 0:00:05.1]} 55. Rxh5 {[%clk
0:00:29.5]} 55... Nxb3 {[%clk 0:00:05.2]} 56. Rh8 {[%clk 0:00:24.4]} 56... Nd4
{[%clk 0:00:05.1]} 57. Nd5+ {[%clk 0:00:20.6]} 57... Kc6 {[%clk 0:00:04.8]} 58.
Nc3 {[%clk 0:00:20.6]} 58... Rc2 {[%clk 0:00:04.2]} 59. Ne4 {[%clk 0:00:20.7]}
59... c4 {[%clk 0:00:04.4]} 60. Rc8+ {[%clk 0:00:13.1]} 60... Kd5 {[%clk
0:00:03.3]} 61. Rc5+ {[%clk 0:00:13.5]} 61... Ke6 {[%clk 0:00:03.5]} 62. f4
{[%clk 0:00:11.1]} 62... Ne2 {[%clk 0:00:02.9]} 63. g3 {[%clk 0:00:10.4]} 63...
Rc1 {[%clk 0:00:02.2]} 64. Kg4 {[%clk 0:00:10.1]} 64... c3 {[%clk 0:00:02]} 65.
f5+ {[%clk 0:00:10.5]} 65... Kd7 {[%clk 0:00:01.3]} 66. f6 {[%clk 0:00:10.2]}
1-0

[Event "*** Titled Tuesday Blitz"]
[Site "Chess.com"]
[Date "2020.04.14"]
[Round "9"]
[White "chiwii"]
[Black "maxip32"]
[Result "0-1"]
[WhiteElo "2230"]
[BlackElo "2416"]
[TimeControl "180+1"]
[EndTime "11:43:57 PDT"]
[Termination "maxip32 won by checkmate"]

1. e4 {[%clk 0:03:00.9]} 1... c5 {[%clk 0:02:59.6]} 2. Nf3 {[%clk 0:03:00.3]}
2... d6 {[%clk 0:02:59.5]} 3. d4 {[%clk 0:03:00.1]} 3... cxd4 {[%clk 0:03:00.1]}
4. Nxd4 {[%clk 0:03:00.4]} 4... Nf6 {[%clk 0:03:00.5]} 5. Nc3 {[%clk 0:03:00.5]}
5... a6 {[%clk 0:03:00.6]} 6. Be2 {[%clk 0:03:00.5]} 6... e5 {[%clk 0:02:59]} 7.
Nf3 {[%clk 0:03:00.5]} 7... h6 {[%clk 0:02:58.4]} 8. Nd2 {[%clk 0:02:59.6]} 8...
Be7 {[%clk 0:02:55.2]} 9. a4 {[%clk 0:02:50.1]} 9... Be6 {[%clk 0:02:54.6]} 10.
Nc4 {[%clk 0:02:47.6]} 10... Nbd7 {[%clk 0:02:50.2]} 11. Ne3 {[%clk 0:02:46.2]}
11... b6 {[%clk 0:02:47.3]} 12. O-O {[%clk 0:02:45.6]} 12... O-O {[%clk
0:02:47]} 13. Ned5 {[%clk 0:02:38.5]} 13... Bxd5 {[%clk 0:02:44.4]} 14. Nxd5
{[%clk 0:02:25.9]} 14... Nxd5 {[%clk 0:02:13.8]} 15. Qxd5 {[%clk 0:02:24]} 15...
Nf6 {[%clk 0:02:13.6]} 16. Qd3 {[%clk 0:02:17.1]} 16... d5 {[%clk 0:01:58.9]}
17. exd5 {[%clk 0:02:13.8]} 17... Qxd5 {[%clk 0:01:59.8]} 18. Qxd5 {[%clk
0:02:10.8]} 18... Nxd5 {[%clk 0:02:00.7]} 19. c3 {[%clk 0:02:06.8]} 19... a5
{[%clk 0:01:52.4]} 20. Rd1 {[%clk 0:02:03.2]} 20... Rad8 {[%clk 0:01:51.5]} 21.
Bf3 {[%clk 0:02:00.1]} 21... Nf6 {[%clk 0:01:51.1]} 22. Be3 {[%clk 0:01:59.7]}
22... e4 {[%clk 0:01:49.7]} 23. Be2 {[%clk 0:01:56.8]} 23... Bc5 {[%clk
0:01:49.4]} 24. Bf4 {[%clk 0:01:06.6]} 24... Nd5 {[%clk 0:01:43.4]} 25. Bg3
{[%clk 0:01:05.7]} 25... e3 {[%clk 0:01:33.3]} 26. Bc4 {[%clk 0:00:45.5]} 26...
exf2+ {[%clk 0:01:10]} 27. Bxf2 {[%clk 0:00:46.4]} 27... Ne3 {[%clk 0:00:43.8]}
28. Bxe3 {[%clk 0:00:30.1]} 28... Bxe3+ {[%clk 0:00:44.7]} 29. Kf1 {[%clk
0:00:30.1]} 29... g6 {[%clk 0:00:41.3]} 30. Ke2 {[%clk 0:00:27]} 30... Bc5
{[%clk 0:00:40.8]} 31. Rd3 {[%clk 0:00:18.6]} 31... Rfe8+ {[%clk 0:00:39.5]} 32.
Kd2 {[%clk 0:00:19]} 32... Be3+ {[%clk 0:00:36.2]} 33. Kc2 {[%clk 0:00:19.2]}
33... Bf4 {[%clk 0:00:37.1]} 34. g3 {[%clk 0:00:19.1]} 34... Bg5 {[%clk
0:00:25.6]} 35. Rf1 {[%clk 0:00:18.8]} 35... Re2+ {[%clk 0:00:22.8]} 36. Kb3
{[%clk 0:00:18.5]} 36... Rxd3 {[%clk 0:00:22.6]} 37. Bxd3 {[%clk 0:00:18.7]}
37... Re7 {[%clk 0:00:14]} 38. Bc4 {[%clk 0:00:18]} 38... Kg7 {[%clk 0:00:13.8]}
39. h4 {[%clk 0:00:18.3]} 39... Be3 {[%clk 0:00:13.1]} 40. Rf3 {[%clk
0:00:14.8]} 40... f5 {[%clk 0:00:12.1]} 41. Bb5 {[%clk 0:00:14.8]} 41... Kf6
{[%clk 0:00:11.2]} 42. Bc6 {[%clk 0:00:13.8]} 42... g5 {[%clk 0:00:09.9]} 43.
hxg5+ {[%clk 0:00:13.7]} 43... hxg5 {[%clk 0:00:10.8]} 44. Bb5 {[%clk
0:00:13.7]} 44... f4 {[%clk 0:00:06.9]} 45. gxf4 {[%clk 0:00:13.6]} 45... gxf4
{[%clk 0:00:07]} 46. Kc2 {[%clk 0:00:14.2]} 46... Rh7 {[%clk 0:00:06.5]} 47. b4
{[%clk 0:00:13.3]} 47... Rh2+ {[%clk 0:00:06.5]} 48. Kb3 {[%clk 0:00:13.8]}
48... Ke5 {[%clk 0:00:05.4]} 49. bxa5 {[%clk 0:00:14]} 49... bxa5 {[%clk
0:00:05.4]} 50. Bc6 {[%clk 0:00:14]} 50... Rh6 {[%clk 0:00:05.3]} 51. Ba8 {[%clk
0:00:10.7]} 51... Ra6 {[%clk 0:00:04.9]} 52. Kc4 {[%clk 0:00:04.8]} 52... Rxa8
{[%clk 0:00:04.6]} 53. Kb5 {[%clk 0:00:05.7]} 53... Ke4 {[%clk 0:00:04.2]} 54.
Rf1 {[%clk 0:00:05.8]} 54... f3 {[%clk 0:00:04.6]} 55. c4 {[%clk 0:00:06.4]}
55... f2 {[%clk 0:00:04.4]} 56. c5 {[%clk 0:00:06.9]} 56... Bxc5 {[%clk
0:00:04]} 57. Kxc5 {[%clk 0:00:07.1]} 57... Ke3 {[%clk 0:00:04.9]} 58. Kc4
{[%clk 0:00:07.4]} 58... Ke2 {[%clk 0:00:05.1]} 59. Ra1 {[%clk 0:00:07.7]} 59...
f1=Q {[%clk 0:00:05.5]} 60. Ra2+ {[%clk 0:00:08.6]} 60... Kf3+ {[%clk
0:00:05.9]} 61. Kc5 {[%clk 0:00:08.5]} 61... Rc8+ {[%clk 0:00:06.2]} 62. Kb6
{[%clk 0:00:08.6]} 62... Qb1+ {[%clk 0:00:06.5]} 63. Kxa5 {[%clk 0:00:09.2]}
63... Ra8# {[%clk 0:00:06.3]} 0-1

[Event "*** Titled Tuesday Blitz"]
[Site "Chess.com"]
[Date "2020.04.14"]
[Round "9"]
[White "Angry_Twin"]
[Black "SCIM"]
[Result "0-1"]
[WhiteElo "2803"]
[BlackElo "2610"]
[TimeControl "180+1"]
[EndTime "11:43:58 PDT"]
[Termination "SCIM won by resignation"]

1. e4 {[%clk 0:03:00.9]} 1... c5 {[%clk 0:02:59.3]} 2. Nf3 {[%clk 0:03:00.7]}
2... e6 {[%clk 0:02:59.5]} 3. d4 {[%clk 0:03:00.6]} 3... cxd4 {[%clk 0:03:00.4]}
4. Nxd4 {[%clk 0:03:01.2]} 4... Nc6 {[%clk 0:03:01]} 5. Nc3 {[%clk 0:03:01.1]}
5... Qc7 {[%clk 0:03:01.5]} 6. g3 {[%clk 0:03:01.7]} 6... a6 {[%clk 0:03:02]} 7.
Bg2 {[%clk 0:03:01.5]} 7... Nf6 {[%clk 0:03:01.3]} 8. O-O {[%clk 0:03:01.3]}
8... Nxd4 {[%clk 0:03:01.8]} 9. Qxd4 {[%clk 0:03:00.9]} 9... Bc5 {[%clk
0:03:02.5]} 10. Bf4 {[%clk 0:03:01.4]} 10... d6 {[%clk 0:03:02.2]} 11. Qd2
{[%clk 0:03:01.8]} 11... h6 {[%clk 0:03:01.7]} 12. Na4 {[%clk 0:02:57.1]} 12...
e5 {[%clk 0:02:54.8]} 13. Nxc5 {[%clk 0:02:56.7]} 13... exf4 {[%clk 0:02:52.7]}
14. Nd3 {[%clk 0:02:52.2]} 14... fxg3 {[%clk 0:02:52.3]} 15. hxg3 {[%clk
0:02:53.1]} 15... O-O {[%clk 0:02:50.9]} 16. Rad1 {[%clk 0:02:47.5]} 16... Bg4
{[%clk 0:02:44.1]} 17. f3 {[%clk 0:02:47.1]} 17... Bd7 {[%clk 0:02:40.3]} 18. g4
{[%clk 0:02:41.3]} 18... Bb5 {[%clk 0:02:34.5]} 19. Rfe1 {[%clk 0:02:41.3]}
19... Rac8 {[%clk 0:02:29]} 20. Rc1 {[%clk 0:02:01.4]} 20... Bxd3 {[%clk
0:02:14.5]} 21. cxd3 {[%clk 0:02:02.3]} 21... Qb6+ {[%clk 0:02:05.9]} 22. Qf2
{[%clk 0:02:01.2]} 22... Qa5 {[%clk 0:02:05.1]} 23. a3 {[%clk 0:01:59.1]} 23...
Nd7 {[%clk 0:01:58.6]} 24. d4 {[%clk 0:01:56.5]} 24... Rc6 {[%clk 0:01:44.8]}
25. f4 {[%clk 0:01:50.9]} 25... Nf6 {[%clk 0:01:37.7]} 26. Bf3 {[%clk
0:01:34.9]} 26... Rxc1 {[%clk 0:01:11.6]} 27. Rxc1 {[%clk 0:01:32.7]} 27... d5
{[%clk 0:01:05.7]} 28. e5 {[%clk 0:00:57.7]} 28... Ne4 {[%clk 0:01:05.4]} 29.
Bxe4 {[%clk 0:00:58.1]} 29... dxe4 {[%clk 0:01:06.3]} 30. Rc5 {[%clk 0:00:58.2]}
30... Qb6 {[%clk 0:01:02.8]} 31. d5 {[%clk 0:00:55.2]} 31... Qg6 {[%clk
0:00:41.6]} 32. Qg3 {[%clk 0:00:45.9]} 32... Qb6 {[%clk 0:00:37.5]} 33. b4
{[%clk 0:00:22.3]} 33... a5 {[%clk 0:00:37.6]} 34. d6 {[%clk 0:00:17.4]} 34...
axb4 {[%clk 0:00:37.1]} 35. axb4 {[%clk 0:00:18.3]} 35... Qxb4 {[%clk
0:00:36.6]} 36. Rc3 {[%clk 0:00:18.9]} 36... Qd4+ {[%clk 0:00:33.5]} 37. Re3
{[%clk 0:00:17]} 37... Ra8 {[%clk 0:00:30.2]} 38. Kh2 {[%clk 0:00:08.7]} 38...
Ra2+ {[%clk 0:00:26.6]} 39. Kh3 {[%clk 0:00:08.8]} 39... Qd1 {[%clk 0:00:23]}
40. Re1 {[%clk 0:00:08.4]} 40... Qd5 {[%clk 0:00:17.5]} 41. f5 {[%clk
0:00:08.8]} 41... e3 {[%clk 0:00:10.8]} 42. e6 {[%clk 0:00:07.9]} 42... fxe6
{[%clk 0:00:10]} 43. fxe6 {[%clk 0:00:08.8]} 43... Qxe6 {[%clk 0:00:09.7]} 44.
Rxe3 {[%clk 0:00:09.3]} 44... Qd5 {[%clk 0:00:06.7]} 45. Re1 {[%clk 0:00:08.6]}
45... Rb2 {[%clk 0:00:04.4]} 46. Re8+ {[%clk 0:00:04.8]} 46... Kh7 {[%clk
0:00:03.3]} 47. Qe3 {[%clk 0:00:01.2]} 47... Rb3 {[%clk 0:00:02.5]} 48. Qxb3
{[%clk 0:00:01.2]} 48... Qxb3+ {[%clk 0:00:02.8]} 49. Kg2 {[%clk 0:00:02.1]}
49... Qc2+ {[%clk 0:00:02.8]} 50. Kf3 {[%clk 0:00:02.3]} 50... Qd3+ {[%clk
0:00:03.2]} 51. Re3 {[%clk 0:00:03]} 51... Qxd6 {[%clk 0:00:04.1]} 52. g5 {[%clk
0:00:02.7]} 52... Qc6+ {[%clk 0:00:05]} 53. Kg4 {[%clk 0:00:02.9]} 53... hxg5
{[%clk 0:00:05.7]} 54. Rh3+ {[%clk 0:00:02.5]} 54... Qh6 {[%clk 0:00:06.2]} 55.
Re3 {[%clk 0:00:03.4]} 55... Qf6 {[%clk 0:00:05.8]} 56. Rh3+ {[%clk 0:00:03]}
56... Qh6 {[%clk 0:00:06.4]} 57. Rb3 {[%clk 0:00:03.3]} 57... Qe6+ {[%clk
0:00:06.3]} 58. Kxg5 {[%clk 0:00:03.4]} 58... Qxb3 {[%clk 0:00:07.2]} 59. Kh5
{[%clk 0:00:03.6]} 59... Qb5+ {[%clk 0:00:07.3]} 0-1

[Event "*** Titled Tuesday Blitz"]
[Site "Chess.com"]
[Date "2020.04.14"]
[Round "9"]
[White "jefferyx"]
[Black "platy3"]
[Result "1-0"]
[WhiteElo "2904"]
[BlackElo "2753"]
[TimeControl "180+1"]
[EndTime "11:44:00 PDT"]
[Termination "jefferyx won on time"]

1. d4 {[%clk 0:03:00.9]} 1... Nf6 {[%clk 0:02:59.5]} 2. c4 {[%clk 0:03:01.7]}
2... e6 {[%clk 0:02:59.8]} 3. Nc3 {[%clk 0:03:02.4]} 3... Bb4 {[%clk 0:02:59.3]}
4. Nf3 {[%clk 0:03:01.7]} 4... b6 {[%clk 0:02:58.7]} 5. Qc2 {[%clk 0:03:00.4]}
5... Bb7 {[%clk 0:02:57.9]} 6. a3 {[%clk 0:03:01.1]} 6... Bxc3+ {[%clk
0:02:56.8]} 7. Qxc3 {[%clk 0:03:02]} 7... Ne4 {[%clk 0:02:54.9]} 8. Qc2 {[%clk
0:03:01.6]} 8... O-O {[%clk 0:02:55]} 9. e3 {[%clk 0:03:02.1]} 9... d6 {[%clk
0:02:54.5]} 10. Be2 {[%clk 0:03:02.5]} 10... a5 {[%clk 0:02:53.1]} 11. b3 {[%clk
0:03:01.8]} 11... Nd7 {[%clk 0:02:53.1]} 12. O-O {[%clk 0:03:02.2]} 12... f5
{[%clk 0:02:53]} 13. Ne1 {[%clk 0:03:02.7]} 13... Qh4 {[%clk 0:02:48.1]} 14. f3
{[%clk 0:03:02.7]} 14... Nef6 {[%clk 0:02:45.6]} 15. Bb2 {[%clk 0:03:01.5]}
15... Rae8 {[%clk 0:02:42.7]} 16. b4 {[%clk 0:02:58.1]} 16... Qg5 {[%clk
0:02:37.3]} 17. Qd2 {[%clk 0:02:49.3]} 17... e5 {[%clk 0:02:30.2]} 18. Nc2
{[%clk 0:02:45.1]} 18... exd4 {[%clk 0:02:17.8]} 19. Bxd4 {[%clk 0:02:46]} 19...
axb4 {[%clk 0:01:46.9]} 20. axb4 {[%clk 0:02:46.9]} 20... Ra8 {[%clk 0:01:46.9]}
21. Bb2 {[%clk 0:02:29.2]} 21... Rfe8 {[%clk 0:01:39.3]} 22. Rxa8 {[%clk
0:02:16.2]} 22... Rxa8 {[%clk 0:01:38.7]} 23. Nd4 {[%clk 0:02:03.9]} 23... Re8
{[%clk 0:01:37.4]} 24. Bd3 {[%clk 0:02:04.1]} 24... Qxe3+ {[%clk 0:01:32]} 25.
Qxe3 {[%clk 0:02:03.5]} 25... Rxe3 {[%clk 0:01:32.9]} 26. Bxf5 {[%clk
0:02:03.1]} 26... Ne5 {[%clk 0:01:33.3]} 27. Kf2 {[%clk 0:01:41.8]} 27... Nxc4
{[%clk 0:01:30.6]} 28. Rc1 {[%clk 0:01:42.4]} 28... Nxb2 {[%clk 0:00:43]} 29.
Kxe3 {[%clk 0:01:42.2]} 29... Nd5+ {[%clk 0:00:43]} 30. Kd2 {[%clk 0:01:30]}
30... c5 {[%clk 0:00:43.1]} 31. Nb5 {[%clk 0:01:15.2]} 31... Nxb4 {[%clk
0:00:39.5]} 32. Nxd6 {[%clk 0:01:15.3]} 32... Bd5 {[%clk 0:00:39.5]} 33. Ra1
{[%clk 0:00:58.4]} 33... g6 {[%clk 0:00:29.2]} 34. Be4 {[%clk 0:00:51.5]} 34...
Bxe4 {[%clk 0:00:19.2]} 35. fxe4 {[%clk 0:00:52.4]} 35... N2d3 {[%clk
0:00:17.7]} 36. Ra7 {[%clk 0:00:52.3]} 36... Ne5 {[%clk 0:00:15.8]} 37. Rb7
{[%clk 0:00:52.3]} 37... Nbd3 {[%clk 0:00:11.7]} 38. Rxb6 {[%clk 0:00:52]} 38...
Nf4 {[%clk 0:00:11.8]} 39. g3 {[%clk 0:00:28.6]} 39... Ne6 {[%clk 0:00:12.1]}
40. h3 {[%clk 0:00:26.5]} 40... Kf8 {[%clk 0:00:06.1]} 41. Kc3 {[%clk
0:00:19.6]} 41... Ke7 {[%clk 0:00:05.6]} 42. Nc8+ {[%clk 0:00:19.2]} 42... Kf6
{[%clk 0:00:06.1]} 43. Nd6 {[%clk 0:00:18.7]} 43... Ke7 {[%clk 0:00:06.2]} 44.
Nc4 {[%clk 0:00:18.1]} 44... Nf3 {[%clk 0:00:04.2]} 45. Rb7+ {[%clk 0:00:16.1]}
45... Kf6 {[%clk 0:00:04.4]} 46. Rxh7 {[%clk 0:00:17]} 46... Neg5 {[%clk
0:00:04.3]} 47. Rc7 {[%clk 0:00:10.2]} 47... Nxe4+ {[%clk 0:00:04.1]} 48. Kd3
{[%clk 0:00:10.8]} 48... Nxg3 {[%clk 0:00:03.2]} 49. Rxc5 {[%clk 0:00:08.1]}
49... Ng5 {[%clk 0:00:03.8]} 50. Ke3 {[%clk 0:00:03.8]} 50... Ne6 {[%clk
0:00:02.8]} 51. Rc6 {[%clk 0:00:03.4]} 51... Nf5+ {[%clk 0:00:03.4]} 52. Kf2
{[%clk 0:00:03.4]} 52... Nd4 {[%clk 0:00:03.6]} 53. Rb6 {[%clk 0:00:04]} 53...
Kf5 {[%clk 0:00:04]} 54. Ne3+ {[%clk 0:00:04.6]} 54... Ke4 {[%clk 0:00:04.2]}
55. Ng2 {[%clk 0:00:05.5]} 55... g5 {[%clk 0:00:04.6]} 56. Rb4 {[%clk
0:00:04.8]} 56... Kd5 {[%clk 0:00:04.5]} 57. Kg3 {[%clk 0:00:05.7]} 57... Ke4
{[%clk 0:00:04.6]} 58. Kg4 {[%clk 0:00:06]} 58... Ke5 {[%clk 0:00:04.5]} 59. Ne3
{[%clk 0:00:06.2]} 59... Ke4 {[%clk 0:00:03.1]} 60. Nc2 {[%clk 0:00:06.5]} 60...
Kd3 {[%clk 0:00:02.2]} 61. Nxd4 {[%clk 0:00:07.4]} 61... Nxd4 {[%clk 0:00:03]}
62. Rxd4+ {[%clk 0:00:07.8]} 62... Kxd4 {[%clk 0:00:03.8]} 63. Kxg5 {[%clk
0:00:08.7]} 1-0

[Event "*** Titled Tuesday Blitz"]
[Site "Chess.com"]
[Date "2020.04.14"]
[Round "9"]
[White "BlueWizzard"]
[Black "Storne89"]
[Result "0-1"]
[WhiteElo "2762"]
[BlackElo "2635"]
[TimeControl "180+1"]
[EndTime "11:44:00 PDT"]
[Termination "Storne89 won by resignation"]

1. d4 {[%clk 0:03:00.9]} 1... Nf6 {[%clk 0:02:59.1]} 2. Nc3 {[%clk 0:03:01.5]}
2... d5 {[%clk 0:02:56.1]} 3. Bg5 {[%clk 0:03:02.1]} 3... Nbd7 {[%clk
0:02:55.6]} 4. Nf3 {[%clk 0:03:01.7]} 4... c5 {[%clk 0:02:52.4]} 5. dxc5 {[%clk
0:02:59.8]} 5... e6 {[%clk 0:02:51.6]} 6. e4 {[%clk 0:02:59.4]} 6... h6 {[%clk
0:02:51.6]} 7. Bxf6 {[%clk 0:02:55.3]} 7... Nxf6 {[%clk 0:02:52.5]} 8. exd5
{[%clk 0:02:53.6]} 8... exd5 {[%clk 0:02:51.7]} 9. Bb5+ {[%clk 0:02:52.2]} 9...
Bd7 {[%clk 0:02:51.9]} 10. Qe2+ {[%clk 0:02:45.4]} 10... Be7 {[%clk 0:02:48.5]}
11. O-O-O {[%clk 0:02:43.2]} 11... Bxb5 {[%clk 0:02:48]} 12. Qxb5+ {[%clk
0:02:42.1]} 12... Qd7 {[%clk 0:02:42.2]} 13. Qxd7+ {[%clk 0:02:41.3]} 13... Kxd7
{[%clk 0:02:41.6]} 14. Nxd5 {[%clk 0:02:27.8]} 14... Nxd5 {[%clk 0:02:41.2]} 15.
Rxd5+ {[%clk 0:02:27.9]} 15... Kc6 {[%clk 0:02:41.7]} 16. c4 {[%clk 0:02:24.8]}
16... Bf6 {[%clk 0:02:29.9]} 17. b4 {[%clk 0:02:24.5]} 17... a5 {[%clk
0:02:28.8]} 18. b5+ {[%clk 0:02:18.4]} 18... Kc7 {[%clk 0:02:29.1]} 19. Rhd1
{[%clk 0:02:16.7]} 19... Rad8 {[%clk 0:02:02.1]} 20. Kc2 {[%clk 0:02:05.5]}
20... Rhe8 {[%clk 0:02:01.4]} 21. R1d2 {[%clk 0:02:04.5]} 21... a4 {[%clk
0:02:00.5]} 22. h3 {[%clk 0:01:42.5]} 22... Re4 {[%clk 0:01:52.7]} 23. Rxd8
{[%clk 0:01:23.6]} 23... Rxc4+ {[%clk 0:01:49]} 24. Kd3 {[%clk 0:01:16.5]} 24...
Rc3+ {[%clk 0:01:49.2]} 25. Ke4 {[%clk 0:01:16.6]} 25... Bxd8 {[%clk 0:01:49.3]}
26. b6+ {[%clk 0:01:06.4]} 26... Kc8 {[%clk 0:01:49.5]} 27. Ne5 {[%clk
0:00:39.5]} 27... Rxc5 {[%clk 0:01:40.3]} 28. Nxf7 {[%clk 0:00:39.1]} 28... Bxb6
{[%clk 0:01:37.7]} 29. Nd6+ {[%clk 0:00:39.3]} 29... Kb8 {[%clk 0:01:29.7]} 30.
f4 {[%clk 0:00:33.3]} 30... a3 {[%clk 0:01:15.1]} 31. f5 {[%clk 0:00:32.1]}
31... Rc3 {[%clk 0:01:13.8]} 32. Kd5 {[%clk 0:00:28.9]} 32... Ba5 {[%clk
0:00:58]} 33. Re2 {[%clk 0:00:28.6]} 33... Rd3+ {[%clk 0:00:50.1]} 34. Ke6
{[%clk 0:00:28.7]} 34... Bb4 {[%clk 0:00:41]} 35. Ne8 {[%clk 0:00:28.7]} 35...
Bc3 {[%clk 0:00:40]} 36. Nd6 {[%clk 0:00:23.8]} 36... Bb2 {[%clk 0:00:33.4]} 37.
g4 {[%clk 0:00:20.2]} 37... Rxh3 {[%clk 0:00:31.7]} 38. Kf7 {[%clk 0:00:20.6]}
38... Rg3 {[%clk 0:00:26.7]} 39. Nb5 {[%clk 0:00:19.6]} 39... b6 {[%clk
0:00:21.1]} 40. Re4 {[%clk 0:00:18.6]} 40... Kb7 {[%clk 0:00:20.5]} 41. Rc4
{[%clk 0:00:17.9]} 41... Ka6 {[%clk 0:00:19.6]} 42. Nd6 {[%clk 0:00:18.1]} 42...
b5 {[%clk 0:00:18.2]} 43. Rc6+ {[%clk 0:00:18.4]} 43... Ka5 {[%clk 0:00:18.6]}
44. Rc5 {[%clk 0:00:18.9]} 44... Rxg4 {[%clk 0:00:14.2]} 45. Rxb5+ {[%clk
0:00:19.2]} 45... Ka6 {[%clk 0:00:14.7]} 46. Rb3 {[%clk 0:00:18]} 46... h5
{[%clk 0:00:14.2]} 47. Ke6 {[%clk 0:00:18.4]} 47... h4 {[%clk 0:00:14.5]} 48.
Kd7 {[%clk 0:00:18.8]} 48... Rg3 {[%clk 0:00:13.9]} 49. Rb4 {[%clk 0:00:18.3]}
49... h3 {[%clk 0:00:13.1]} 50. Kc6 {[%clk 0:00:18.6]} 50... Rc3+ {[%clk
0:00:12.9]} 51. Nc4 {[%clk 0:00:19.2]} 51... Ka7 {[%clk 0:00:11.1]} 52. Kc7
{[%clk 0:00:19.6]} 52... Ka6 {[%clk 0:00:06.5]} 53. Kc6 {[%clk 0:00:19.2]} 53...
Ka7 {[%clk 0:00:06.9]} 54. Rb7+ {[%clk 0:00:18.7]} 54... Ka6 {[%clk 0:00:06.2]}
55. Rb6+ {[%clk 0:00:18.2]} 55... Ka7 {[%clk 0:00:06.3]} 56. Rb4 {[%clk
0:00:19.1]} 56... h2 {[%clk 0:00:04.7]} 57. Rb7+ {[%clk 0:00:18.5]} 57... Ka6
{[%clk 0:00:04.9]} 58. Rb6+ {[%clk 0:00:17.3]} 58... Ka7 {[%clk 0:00:05.1]} 59.
Rb7+ {[%clk 0:00:17.6]} 59... Ka8 {[%clk 0:00:05]} 60. Ra7+ {[%clk 0:00:03.5]}
0-1